[Event "Chess Ladies Graz 2024"]
[Site "Graz"]
[Date "2024.02.25"]
[Round "1.1"]
[White "Mayrhuber, Nikola"]
[Black "Daulyte-Cornette, Deimante"]
[Result "0-1"]
[ECO "E51"]
[WhiteElo "1980"]
[BlackElo "2372"]
[Annotator "TA"]
[PlyCount "34"]
[EventDate "2024.02.25"]
[EventType "tourn"]
[EventCountry "AUT"]
[SourceTitle "playchess.com"]
[Source "ChessBase"]
[SourceQuality "1"]
[TimeControl "40/5400+30:1800+30"]

{[%evp 12,34,0,0,10,1,23,11,29,41,37,-48,-62,-55,0,-3,-4,-94,-94,-87,-79,-89,-95,-521,-521]} 1. d4 {[%emt 0:00:02]} Nf6 {[%emt 0:00:09]} 2. c4 {[%emt 0:00:06]} e6 {[%emt 0:00:08]} 3. Nc3 {[%emt 0:01:13]} Bb4 {[%emt 0:02:13]} 4. e3 {[%emt 0:00:06]} O-O {[%emt 0:00:31]} 5. Nf3 {[%emt 0:00:20]} d5 {[%emt 0:00:50]} 6. Bd2 {[%emt 0:00:12]} Nbd7 {[%emt 0:02:07]} 7. Bd3 {[%emt 0:00:25]} dxc4 {[%emt 0:01:21]} 8. Bxc4 {[%emt 0:00:06]} Qe7 {[%emt 0:00:10]} 9. O-O {[%emt 0:01:39]} e5 {[%emt 0:00:52] The position is equal.} 10. a3 {[%emt 0:26:18]} Bd6 {[%emt 0:06:20]} 11. e4 {[%emt 0:14:52]} (11. Qc2 $1 $14) 11... exd4 $15 {[%emt 0:03:47]} 12. Nxd4 {[%emt 0:00:27] [#]} Bxh2+ {[%emt 0:01:01]} 13. Kxh2 $11 {[%emt 0:01:25] Threatens to win with Nf5.} Qe5+ {[%emt 0:00:23]} 14. f4 {[%emt 0:00:28]} (14. Kg1 $11 Qxd4 15. Ba2) 14... Qxd4 $17 {[%emt 0:00:10]} 15. Qe2 {[%emt 0:01:59]} Nb6 {[%emt 0:06:23]} 16. Ba2 {[%emt 0:03:27]} Rd8 {[%emt 0:11:55][%cal Oc8g4] aiming for ...Bg4! Black is more active.} 17. Be3 $2 {[%emt 0:10:24][%mdl 8192] [#]} (17. Be1 $17 {is a better chance.} Bg4 18. Qc2) 17... Qxe3 $3 {[%emt 0:02:56][%mdl 512] Weighted Error Value: White=0.86/Black=0.13 (very precise) .  Loses game:     	White=1     	---        Mistake:       	White=2     	Black=1      OK:         	White=2     	Black=4      Best:        	---       	Black=1      Brilliant:      	---       	Black=1} 0-1

[Event "Chess Ladies Graz 2024"]
[Site "Graz"]
[Date "2024.02.25"]
[Round "1.2"]
[White "Brunello, Marina"]
[Black "Bodnaruk, Anastasia"]
[Result "1/2-1/2"]
[ECO "B90"]
[WhiteElo "2345"]
[BlackElo "2340"]
[Annotator "TA"]
[PlyCount "78"]
[EventDate "2024.02.25"]
[EventType "tourn"]
[EventCountry "AUT"]
[SourceTitle "playchess.com"]
[Source "ChessBase"]
[SourceQuality "1"]
[TimeControl "40/5400+30:1800+30"]

{[%evp 15,78,6,19,13,9,8,4,9,18,18,15,12,19,23,31,29,32,33,36,30,32,5,43,-21,-34,-16,95,98,197,185,191,142,159,147,127,134,258,252,258,261,286,0,0,0,0,0,0,0,0,0,0,0,0,0,0,0,0,0,0,0,0,0,0,0,0]} 1. e4 {[%emt 0:00:12]} c5 {[%emt 0:00:06]} 2. Nf3 {[%emt 0:00:20]} d6 {[%emt 0:00:07]} 3. d4 {[%emt 0:00:10]} cxd4 {[%emt 0:00:04]} 4. Nxd4 {[%emt 0:00:07]} Nf6 {[%emt 0:00:05]} 5. Nc3 {[%emt 0:00:05]} a6 {[%emt 0:00:03]} 6. Be3 {[%emt 0:05:35]} e5 {[%emt 0:00:24]} 7. Nf3 {[%emt 0:00:08]} Be7 {[%emt 0:01:13]} 8. Bc4 {[%emt 0:00:28]} Be6 {[%emt 0:01:44]} 9. Bb3 {[%emt 0:00:06]} Nbd7 {[%emt 0:00:47]} 10. O-O {[%emt 0:14:11]} Rc8 {[%emt 0:04:56]} 11. Ng5 {[%emt 0:06:11]} Bc4 {[%emt 0:05:07]} 12. Bxc4 {[%emt 0:04:12]} Rxc4 {[%emt 0:01:48]} 13. Qd3 {[%emt 0:00:10]} Qc7 {[%emt 0:04:53]} 14. Nf3 {[%emt 0:03:13]} O-O {[%emt 0:02:12]} 15. Nd2 {[%emt 0:02:30]} Rc6 {[%emt 0:01:02]} 16. a4 {[%emt 0:00:19]} h6 {[%emt 0:07:49]} 17. Rfc1 {[%emt 0:01:56]} Rc8 {[%emt 0:01:30]} 18. f3 {[%emt 0:09:57]} Nb6 {[%emt 0:09:25][%cal Od6d5,Bd7b6,Bb6d5,Bd5e3][%mdl 32]} 19. Kf1 {[%emt 0:11:14] [#]} (19. a5 $14 Nc4 20. Nxc4 Rxc4 21. Rd1) 19... d5 $1 $11 {[%emt 0:11:53]} 20. exd5 {[%emt 0:06:27]} Rxc3 {[%emt 0:03:09]} (20... Rd8 $11 {keeps the balance.} 21. Bxb6 Rxb6) 21. Qxc3 $16 {[%emt 0:02:23]} Qd7 {[%emt 0:06:48]} (21... Qxc3 $16 {was necessary.} 22. bxc3 Nbxd5) 22. Qxe5 $18 {[%emt 0:07:11]} Nbxd5 {[%emt 0:05:44]} 23. Bf2 {[%emt 0:00:29]} (23. Bg1 $18) 23... Bd6 $16 {[%emt 0:06:25]} 24. Qd4 {[%emt 0:01:25]} Bc5 {[%emt 0:00:12]} 25. Qd3 {[%emt 0:00:14] Ne4 would now be deadly.} Qc7 {[%emt 0:02:36]} (25... Bxf2 $16 26. Kxf2 Qc7) 26. Bxc5 $18 {[%emt 0:06:44]} Qxc5 {[%emt 0:00:03] [#]} 27. Nb3 $1 {[%emt 0:01:50]} Ne3+ {[%emt 0:03:25] [#]} 28. Ke2 $2 {[%emt 0:03:55]} (28. Kg1 $1 $18 Qg5 29. Qd2) 28... Qg5 $36 {[%emt 0:01:26][%mdl 2048] White is under pressure. The position is equal.} 29. g3 $1 {[%emt 0:00:10][%cal Oe2f2] Kf2! is the strong threat.} (29. Qxe3 $2 {loses.} Qxg2+ (29... Re8 30. Qxe8+ Nxe8 31. Kf2 $15) 30. Kd3 Re8 $19) 29... Re8 {[%emt 0:10:37] Strongly threatening ...Neg4+.} 30. Kf2 {[%emt 0:00:06]} Nfg4+ {[%emt 0:01:58]} 31. fxg4 {[%emt 0:02:52]} Nxg4+ {[%emt 0:00:03]} 32. Kg1 {[%emt 0:00:10]} Re3 {[%emt 0:00:33]} 33. Qd2 {[%emt 0:04:35]} Nxh2 $1 {[%emt 0:01:10]} 34. Qxe3 {[%emt 0:00:59]} Qxe3+ {[%emt 0:00:03]} 35. Kxh2 {[%emt 0:00:03] Threatens to win with Rg1.} Qe2+ {[%emt 0:03:08]} 36. Kg1 {[%emt 0:01:00]} Qe3+ {[%emt 0:00:14]} 37. Kg2 {[%emt 0:00:12] And now Re1 would win.} Qe2+ {[%emt 0:00:11]} 38. Kg1 {[%emt 0:00:03]} Qe3+ {[%emt 0:00:03]} 39. Kg2 {[%emt 0:00:11] Hoping for Re1.} Qe2+ {[%emt 0:00:14] Blacks defense is rewarded with a draw.   Weighted Error Value: White=0.14 (very precise) /Black=0.18 (very precise) .  Missed win:     	White=1     	---        Mistake:       	White=2     	Black=3      Inaccurate:     	White=1     	Black=1      OK:         	White=13    	Black=12     Best:        	White=3     	Black=3      Strong:       	White=2     	Black=1} 1/2-1/2

[Event "Chess Ladies Graz 2024"]
[Site "Graz"]
[Date "2024.02.25"]
[Round "1.3"]
[White "Atalik, Ekaterina"]
[Black "Polterauer, Chiara"]
[Result "1-0"]
[ECO "A34"]
[WhiteElo "2405"]
[BlackElo "2189"]
[Annotator "TA"]
[PlyCount "105"]
[EventDate "2024.02.25"]
[EventType "tourn"]
[EventCountry "AUT"]
[SourceTitle "playchess.com"]
[Source "ChessBase"]
[SourceQuality "1"]
[TimeControl "40/5400+30:1800+30"]

{[%evp 12,105,0,0,7,0,0,0,1,0,0,0,0,8,7,0,0,0,0,0,0,0,0,0,7,6,4,0,0,0,0,0,0,0,0,0,0,0,0,0,0,0,0,0,0,0,0,0,0,0,85,81,160,167,235,220,220,228,242,227,222,0,0,0,0,0,-8,-8,0,0,452,433,438,438,525,489,529,529,529,497,29958,29941,29973,29976,29976,29977,29975,29976,5110,1741,29978,29979,29979,29980,29979,29979]} 1. c4 {[%emt 0:00:04]} c5 {[%emt 0:00:06]} 2. e3 {[%emt 0:00:42]} Nf6 {[%emt 0:00:39]} 3. Nf3 {[%emt 0:00:18]} d5 {[%emt 0:00:24]} 4. d4 {[%emt 0:02:12]} Nc6 {[%emt 0:04:47]} 5. Nc3 {[%emt 0:01:48]} cxd4 {[%emt 0:07:26]} 6. Nxd4 {[%emt 0:00:47]} e5 {[%emt 0:04:29] A34: Symmetrical English: 2 Nc3, lines with ...d5.} 7. Nxc6 $1 {[%emt 0:00:28]} bxc6 {[%emt 0:00:05]} 8. cxd5 {[%emt 0:00:19]} cxd5 {[%emt 0:01:05]} 9. Bb5+ {[%emt 0:00:12]} Bd7 {[%emt 0:00:40]} 10. Bxd7+ {[%emt 0:00:26]} Qxd7 {[%emt 0:00:17]} 11. O-O {[%emt 0:01:00]} Be7 {[%emt 0:11:40]} 12. b3 {[%emt 0:02:03]} O-O {[%emt 0:00:22]} 13. Bb2 {[%emt 0:00:35]} Rfd8 {[%emt 0:03:41]} 14. Qd3 $146 {[%emt 0:05:02]} ({Predecessor:} 14. f4 Ng4 15. Nxd5 Bc5 16. h3 Nxe3 17. Nxe3 Bxe3+ 18. Kh1 Bxf4 19. Qxd7 Rxd7 20. Rf2 {0-1 Tsonev,B-Ivanova,S (1807) Kesarovski Georgiev Memorial 8th 2009 (5)}) 14... Rac8 {[%emt 0:05:27]} 15. Rac1 {[%emt 0:03:11]} Qe6 {[%emt 0:07:11]} 16. Rfd1 {[%emt 0:07:31]} d4 {[%emt 0:07:28]} 17. exd4 {[%emt 0:01:37]} Rxd4 {[%emt 0:00:20]} 18. Qe2 {[%emt 0:00:51]} Rcd8 {[%emt 0:04:57]} 19. Nb5 {[%emt 0:30:15]} Rxd1+ {[%emt 0:01:17]} 20. Rxd1 {[%emt 0:00:22]} Rxd1+ {[%emt 0:00:30]} 21. Qxd1 {[%emt 0:00:05]} h6 {[%emt 0:03:32]} 22. Qe2 {[%emt 0:05:16]} (22. Nxa7 $2 Bc5 (22... Qa6 $2 23. Bxe5 Qxa7 24. Bxf6 $19) 23. Nb5 Qf5 $19) 22... Bc5 {[%emt 0:12:22]} 23. h3 {[%emt 0:04:04]} (23. Bxe5 $2 Ng4 24. Kf1 Nxe5 $19) 23... e4 {[%emt 0:02:00]} 24. Nd4 {[%emt 0:06:16]} Qd5 {[%emt 0:01:26]} 25. Nc2 {[%emt 0:07:05]} Qd3 {[%emt 0:02:41]} 26. Kf1 {[%emt 0:00:13]} Nd5 {[%emt 0:00:54]} 27. g3 {[%emt 0:01:04]} f5 {[%emt 0:04:15]} 28. Qxd3 {[%emt 0:04:29]} exd3 {[%emt 0:00:06]} 29. Nd4 {[%emt 0:00:39]} f4 {[%emt 0:02:35]} 30. g4 {[%emt 0:05:13]} Bb4 {[%emt 0:07:35] [#]} (30... Nb4 $11 {remains equal.}) 31. a3 $1 $16 {[%emt 0:02:05]} Bc5 {[%emt 0:03:12]} (31... Bd2 $142) 32. Ke1 $16 {[%emt 0:02:23]} Nf6 {[%emt 0:00:44]} (32... f3 $142 33. b4 (33. Nxf3 Nf4 $18) 33... Bb6) 33. f3 {[%emt 0:04:42]} Nd7 {[%emt 0:00:07] [#]} 34. b4 $1 {[%emt 0:01:43]} Bb6 {[%emt 0:00:48]} 35. Nf5 {[%emt 0:00:48]} g6 {[%emt 0:01:39]} 36. Ne7+ $2 {[%emt 0:00:46]} (36. Nxh6+ $18 Kf8 37. Kd2) 36... Kf7 $11 {[%emt 0:00:13]} 37. Nd5 {[%emt 0:00:18]} Be3 $1 {[%emt 0:01:00]} 38. Nxe3 {[%emt 0:00:10]} fxe3 {[%emt 0:00:04]} 39. Bd4 {[%emt 0:00:03]} e2 {[%emt 0:00:22]} 40. Kd2 $1 {[%emt 0:00:48]} (40. Bxa7 $2 Ne5 41. Kd2 Nxf3+ 42. Kxd3 e1=Q $19 (42... e1=B $2 43. Ke2 $18)) 40... a6 $2 {[%emt 0:00:56][%mdl 8192]} (40... Nb6 41. Bxb6 (41. Kxd3 $2 e1=Q $19) (41. Bf2 Nc4+ 42. Kxd3 Nxa3 $18) 41... axb6 42. a4 $18) (40... Ke6 $1 $11 41. Bxa7 (41. Bc3 Ne5 $15) 41... Ne5) 41. Bc3 $1 $18 {[%emt 0:30:35]} (41. Kxd3 $2 e1=Q (41... e1=R $2 42. a4 $19) 42. h4 Qxh4 $19) 41... Nb6 {[%emt 0:04:33]} 42. Kxd3 {[%emt 0:00:00]} Nd5 {[%emt 0:00:07]} 43. Bd2 {[%emt 0:00:00]} Nf4+ {[%emt 0:00:30]} 44. Ke3 $1 {[%emt 0:00:00]} (44. Bxf4 $2 {perishes.} e1=Q (44... e1=B $2 {is the wrong capture.} 45. Bxh6 Bg3 46. a4 $18) 45. Bxh6 Qf1+ 46. Ke4 Qc4+ (46... Qxh3 $2 47. Bd2 $19) 47. Ke5 Qc3+ 48. Ke4 Qc6+ (48... Qxa3 $2 49. Bd2 $19) 49. Kd3 Qxf3+ 50. Be3 Qxh3 $19) 44... g5 {[%emt 0:02:42]} 45. Kf2 {[%emt 0:00:00]} Nxh3+ {[%emt 0:01:04]} (45... e1=B+ $18 46. Kxe1 (46. Bxe1 Nxh3+ 47. Ke3 Ke6 $18) 46... Ne6) 46. Kxe2 {[%emt 0:00:00]} Ke6 {[%emt 0:00:06]} 47. Be3 {[%emt 0:00:00]} Ke5 {[%emt 0:06:48]} 48. a4 {[%emt 0:00:00]} Kd5 {[%emt 0:02:42]} 49. Kd3 {[%emt 0:00:00]} Ke5 {[%emt 0:00:07]} 50. b5 {[%emt 0:00:00]} (50. a5 $142 Kd5 51. Kc3) 50... axb5 {[%emt 0:00:12]} 51. axb5 {[%emt 0:00:00]} Kd5 {[%emt 0:01:11]} 52. b6 {[%emt 0:00:00]} Kc6 {[%emt 0:00:39]} 53. Ke4 {[%emt 0:00:00]} 1-0

[Event "Chess Ladies Graz 2024"]
[Site "Graz"]
[Date "2024.02.25"]
[Round "1.4"]
[White "Froewis, Annika"]
[Black "Trippold, Denise"]
[Result "0-1"]
[ECO "C11"]
[WhiteElo "2133"]
[BlackElo "2147"]
[Annotator "RC"]
[PlyCount "118"]
[EventDate "2024.02.25"]
[EventType "tourn"]
[EventCountry "AUT"]
[SourceTitle "playchess.com"]
[Source "ChessBase"]
[SourceQuality "1"]
[TimeControl "40/5400+30:1800+30"]

1. e4 {[%emt 0:00:03]} e6 {[%emt 0:00:12]} 2. d4 {[%emt 0:00:05]} d5 {[%emt 0:00:12]} 3. Nc3 {[%emt 0:00:08]} Nf6 {[%emt 0:00:12]} 4. e5 {[%emt 0:00:06]} Nfd7 {[%emt 0:00:13]} 5. f4 {[%emt 0:00:06]} c5 {[%emt 0:00:11]} 6. Nf3 {[%emt 0:00:05]} Nc6 {[%emt 0:00:12]} 7. Be3 {[%emt 0:00:08]} cxd4 {[%emt 0:00:59]} 8. Nxd4 {[%emt 0:00:07]} Qb6 {[%emt 0:00:33]} 9. Qd2 {[%emt 0:20:37]} Qxb2 {[%emt 0:00:41]} 10. Rb1 {[%emt 0:00:09]} Qa3 {[%emt 0:00:22]} 11. Bb5 {[%emt 0:13:13]} Nxd4 {[%emt 0:08:49]} 12. Bxd4 {[%emt 0:10:56]} a6 {[%emt 0:05:12]} 13. Bxd7+ {[%emt 0:06:35]} Bxd7 {[%emt 0:01:50]} 14. Rb3 {[%emt 0:00:50]} Qe7 {[%emt 0:00:40]} 15. Rxb7 {[%emt 0:00:39]} Qh4+ {[%emt 0:00:52]} 16. Bf2 {[%emt 0:02:15]} Qd8 {[%emt 0:10:50]} 17. O-O {[%emt 0:16:16]} Qc8 {[%emt 0:15:31]} 18. Rfb1 {[%emt 0:02:55]} Bc6 {[%emt 0:31:52]} 19. R7b6 {[%emt 0:07:26]} Be7 {[%emt 0:00:54]} 20. Bd4 {[%emt 0:03:32]} O-O {[%emt 0:00:58]} 21. Qf2 {[%emt 0:01:36]} Qd7 {[%emt 0:10:43]} 22. R6b3 {[%emt 0:04:50]} f6 {[%emt 0:02:55]} 23. Ne2 {[%emt 0:02:48]} Bb5 {[%emt 0:01:31]} 24. Rh3 {[%emt 0:04:03]} Rac8 {[%emt 0:05:28]} 25. c3 {[%emt 0:02:36]} f5 {[%emt 0:00:29]} 26. Kh1 {[%emt 0:00:39]} Bc4 {[%emt 0:00:17]} 27. a3 {[%emt 0:00:41]} Rb8 {[%emt 0:00:19]} 28. Re1 {[%emt 0:00:34]} Rb2 {[%emt 0:00:43]} 29. Re3 {[%emt 0:00:15]} Bxa3 {[%emt 0:00:39]} 30. g4 {[%emt 0:00:27]} fxg4 {[%emt 0:00:28]} 31. Qg3 {[%emt 0:00:20]} Bxe2 {[%emt 0:00:42]} 32. R3xe2 {[%emt 0:00:10]} Rxe2 {[%emt 0:00:14]} 33. Rxe2 {[%emt 0:00:02]} Qb5 {[%emt 0:00:32]} 34. Re1 {[%emt 0:01:25]} h5 {[%emt 0:00:39]} 35. h3 {[%emt 0:00:41]} gxh3 {[%emt 0:00:20]} 36. Rg1 {[%emt 0:00:20]} Qd7 {[%emt 0:00:14]} 37. Kh2 {[%emt 0:00:45]} Rf5 {[%emt 0:00:34]} 38. Kxh3 {[%emt 0:00:31]} Qf7 {[%emt 0:00:11]} 39. Be3 {[%emt 0:00:30]} Bf8 {[%emt 0:00:25]} 40. Rb1 {[%emt 0:00:33]} Kh7 {[%emt 0:01:10]} 41. Kh2 {[%emt 0:04:13]} a5 {[%emt 0:09:03]} 42. Ra1 {[%emt 0:05:20]} Qc7 {[%emt 0:00:40]} 43. Bd2 {[%emt 0:03:58]} Qb6 {[%emt 0:04:22]} 44. Qd3 {[%emt 0:09:05]} Qf2+ {[%emt 0:06:37]} 45. Kh1 {[%emt 0:01:32]} Bc5 {[%emt 0:03:20]} 46. Rf1 {[%emt 0:01:01]} Qh4+ {[%emt 0:00:02]} 47. Kg2 {[%emt 0:00:06]} Qg4+ {[%emt 0:00:35]} 48. Kh2 {[%emt 0:02:19]} h4 {[%emt 0:05:21]} 49. Be1 {[%emt 0:03:29]} a4 {[%emt 0:02:47]} 50. c4 {[%emt 0:01:05]} dxc4 {[%emt 0:01:08]} 51. Qxc4 {[%emt 0:00:47]} Be3 {[%emt 0:02:17]} 52. Qd3 Bxf4+ 53. Kh1 Be3 54. Kh2 Bf4+ 55. Kh1 Bxe5 56. Rg1 Qf3+ {[%emt 0:01:54]} 57. Qxf3 {[%emt 0:05:07]} Rxf3 {[%emt 0:00:00]} 58. Kg2 {[%emt 0:00:24]} Rf4 {[%emt 0:00:00]} 59. Rh1 {[%emt 0:00:43]} Bf6 {[%emt 0:00:46]} 0-1

[Event "Chess Ladies Graz 2024"]
[Site "Graz"]
[Date "2024.02.25"]
[Round "1.5"]
[White "Schloffer, Jasmin-Denise"]
[Black "Mkrtchian, Lilit"]
[Result "1/2-1/2"]
[ECO "A90"]
[WhiteElo "2178"]
[BlackElo "2378"]
[Annotator "TA"]
[PlyCount "65"]
[EventDate "2024.02.25"]
[EventType "tourn"]
[EventCountry "AUT"]
[SourceTitle "playchess.com"]
[Source "ChessBase"]
[SourceQuality "1"]
[TimeControl "40/5400+30:1800+30"]

{[%evp 21,65,12,10,17,20,0,12,4,14,8,18,0,12,0,18,27,60,9,11,-76,-72,-80,-78,-81,-30,-18,-23,-32,-26,-24,0,0,0,0,0,0,0,0,0,0,0,0,0,0,0,0]} 1. d4 {[%emt 0:00:03]} e6 {[%emt 0:00:31]} 2. c4 {[%emt 0:00:06]} f5 {[%emt 0:00:56]} 3. g3 {[%emt 0:01:13]} Nf6 {[%emt 0:00:09]} 4. Bg2 {[%emt 0:00:06]} d5 {[%emt 0:00:25]} 5. Nf3 {[%emt 0:00:20]} Bd6 {[%emt 0:01:52]} 6. O-O {[%emt 0:00:25]} c6 {[%emt 0:00:08]} 7. b3 {[%emt 0:01:54]} Qe7 {[%emt 0:00:25]} 8. Bb2 {[%emt 0:00:33]} b6 {[%emt 0:01:20]} 9. Nbd2 {[%emt 0:04:20]} O-O {[%emt 0:00:42]} 10. Ne5 {[%emt 0:03:56]} Bb7 {[%emt 0:00:32]} 11. e3 {[%emt 0:03:46]} a5 {[%emt 0:02:44]} 12. Qc2 {[%emt 0:07:32]} Na6 {[%emt 0:01:38][%cal Bb8a6,Ba6b4,Bb4d3][%mdl 32]} 13. Rac1 {[%emt 0:02:30]} Rac8 {[%emt 0:03:17]} 14. Rfd1 {[%emt 0:03:53]} c5 {[%emt 0:13:39]} 15. Qb1 {[%emt 0:04:47]} Ne4 {[%emt 0:05:50]} 16. Ndf3 {[%emt 0:08:45]} Rc7 {[%emt 0:12:58]} 17. Nd3 {[%emt 0:03:53]} Nb4 {[%emt 0:03:52]} 18. Nfe5 {[%emt 0:05:16]} g6 {[%emt 0:14:44]} 19. Qa1 {[%emt 0:07:01]} ({White should try} 19. dxc5 $14 bxc5 20. a3 Nxd3 21. Qxd3) 19... Nxd3 $11 {[%emt 0:11:20]} (19... Rcc8 {seems wilder.} 20. f3 Nxd3 21. Nxd3 dxc4 22. bxc4 Ng5) 20. Rxd3 {[%emt 0:06:32]} (20. Nxd3 $11 dxc4 21. bxc4) 20... Bxe5 $17 {[%emt 0:04:13]} 21. dxe5 {[%emt 0:00:08]} dxc4 {[%emt 0:01:06]} 22. bxc4 {[%emt 0:01:47] [#]} Rd7 {[%emt 0:01:00]} (22... Ng5 $1 $17 {And now ...Bxg2 would win.} 23. Bxb7 Rxb7) 23. Rcd1 $1 $11 {[%emt 0:03:21]} Rfd8 {[%emt 0:01:54]} 24. Qb1 {[%emt 0:02:22]} Rxd3 {[%emt 0:07:51]} 25. Rxd3 {[%emt 0:00:07]} Nd2 {[%emt 0:00:32]} (25... Bc6 $5) 26. Rxd8+ $1 {[%emt 0:02:15] The position is equal.} Qxd8 {[%emt 0:00:04]} 27. Qd1 {[%emt 0:00:40]} Bxg2 {[%emt 0:00:27]} 28. Kxg2 {[%emt 0:00:05] [#] aiming for Kg1. KQB-KQN} Qa8+ {[%emt 0:00:13]} 29. f3 {[%emt 0:03:05]} Nxc4 {[%emt 0:00:08]} 30. Qd7 $1 {[%emt 0:01:48]} Qd5 {[%emt 0:04:44]} 31. Qe8+ {[%emt 0:00:13]} Kg7 {[%emt 0:00:03]} 32. Qe7+ {[%emt 0:00:04]} Kg8 $1 {[%emt 0:00:04]} ({Not} 32... Kh6 $2 33. Bc1 Qd1 (33... Nxe5 34. e4+) 34. Qh4+ Kg7 35. Qxc4 $18) 33. Qe8+ {[%emt 0:00:58] Weighted Error Value: White=0.12 (very precise) /Black=0.09 (flawless) .  Mistake:       	White=2     	Black=1      Inaccurate:     	---       	Black=1      OK:         	White=8     	Black=5      Best:        	---       	Black=1      Strong:       	White=3     	Black=1} 1/2-1/2

[Event "Chess Ladies Graz 2024"]
[Site "Graz"]
[Date "2024.02.26"]
[Round "2.1"]
[White "Daulyte-Cornette, Deimante"]
[Black "Mkrtchian, Lilit"]
[Result "1/2-1/2"]
[ECO "C02"]
[WhiteElo "2372"]
[BlackElo "2378"]
[Annotator "TA"]
[PlyCount "56"]
[EventDate "2024.02.25"]
[EventType "tourn"]
[EventCountry "AUT"]
[SourceTitle "playchess.com"]
[Source "ChessBase"]
[SourceQuality "1"]
[TimeControl "40/5400+30:1800+30"]

{[%evp 16,56,33,41,42,15,30,0,0,-16,-13,-5,-17,-31,-20,-24,-11,0,-4,-33,-39,-21,-16,-23,0,0,4,0,18,0,43,35,37,23,23,0,0,0,22,-22,-14,-18,0]} 1. e4 {[%emt 0:00:03]} e6 {[%emt 0:00:16]} 2. d4 {[%emt 0:00:09]} d5 {[%emt 0:00:07]} 3. e5 {[%emt 0:00:17]} c5 {[%emt 0:00:17]} 4. c3 {[%emt 0:00:07]} Nc6 {[%emt 0:00:06]} 5. Nf3 {[%emt 0:00:14]} Bd7 {[%emt 0:00:08]} 6. Be2 {[%emt 0:00:26]} Nge7 {[%emt 0:00:19]} 7. O-O {[%emt 0:00:30]} Ng6 {[%emt 0:00:29]} 8. Be3 {[%emt 0:00:43]} cxd4 {[%emt 0:14:10]} 9. cxd4 {[%emt 0:00:12]} Be7 {[%emt 0:00:18]} 10. Nbd2 {[%emt 0:03:53]} O-O {[%emt 0:04:16]} 11. Rc1 {[%emt 0:02:00]} Qb6 {[%emt 0:08:43]} 12. Qb3 {[%emt 0:14:46]} Na5 {[%emt 0:15:53]} 13. Qxb6 {[%emt 0:07:21]} axb6 {[%emt 0:00:05]} 14. g3 {[%emt 0:01:27]} b5 {[%emt 0:21:57]} 15. h4 {[%emt 0:17:40][%cal Bh2h4,Bh4h5][%mdl 32]} Nc4 {[%emt 0:02:08]} 16. h5 {[%emt 0:00:20]} Nh8 {[%emt 0:01:11]} 17. Nxc4 {[%emt 0:09:31]} bxc4 {[%emt 0:00:39]} 18. a3 {[%emt 0:00:06]} f6 {[%emt 0:01:04]} 19. h6 {[%emt 0:05:03]} Nf7 {[%emt 0:05:41]} 20. hxg7 {[%emt 0:01:32]} Kxg7 {[%emt 0:00:04]} 21. Kg2 {[%emt 0:02:44]} b5 {[%emt 0:01:29]} 22. Rh1 {[%emt 0:03:16]} b4 {[%emt 0:05:26]} 23. exf6+ {[%emt 0:09:01]} Bxf6 {[%emt 0:01:30]} 24. axb4 {[%emt 0:00:29][%cal Ob2b3]} Ra2 {[%emt 0:06:23]} 25. Rb1 {[%emt 0:01:47][%cal Of3e5]} Rb8 {[%emt 0:00:34] The position is equal.} 26. Bd2 {[%emt 0:00:16]} Be7 {[%emt 0:01:56]} 27. Bc3 {[%emt 0:03:06]} (27. Ra1 $5 Rba8 28. Rxa2 Rxa2 29. Bc3 $11) 27... Bxb4 {[%emt 0:00:21]} 28. Ra1 $1 {[%emt 0:00:24]} Rxa1 {[%emt 0:02:32] Weighted Error Value: White=0.12 (very precise) /Black=0.10 (very precise) .  Inaccurate:     	White=4     	Black=2      OK:         	White=7     	Black=6      Best:        	White=1     	---        Strong:       	White=1     	---} 1/2-1/2